fUST/lending_fUST_20260516
["ID","MTS","AMOUNT","RATE_DAILY","PERIOD"]
[422374483,1778895041000,-1271.89,0.00011506,2]
[422374482,1778895041000,-1365.03,0.00011506,2]
[422374484,1778895041000,-500.0,0.00011506,2]
[422374485,1778895041000,-1951.34,0.00011506,2]
[422374486,1778895041000,-500.0,0.00011506,2]
[422374488,1778895041000,-1549.76,0.00011506,2]
[422374491,1778895041000,-1650.72,0.00011506,2]
[422374472,1778895041000,-500.0,0.00011506,2]
[422374459,1778895041000,-1006.43,0.00011506,2]
[422374520,1778895041000,-500.0,0.0001178,2]
[422374461,1778895041000,-1028.23,0.00011506,2]
[422374489,1778895041000,-3097.95,0.00011506,2]
[422374430,1778895041000,-500.0,0.00011506,2]
[422374435,1778895041000,-500.0,0.00011506,2]
[422374436,1778895041000,-699.49,0.00011506,2]
[422374432,1778895041000,-616.42,0.00011506,2]
[422374439,1778895041000,-682.63,0.00011506,2]
[422374437,1778895041000,-500.0,0.00011506,2]
[422374434,1778895041000,-999.97,0.00011506,2]
[422374438,1778895041000,-1358.26,0.00011506,2]
[422374431,1778895041000,-500.0,0.00011506,2]
[422374433,1778895041000,-500.0,0.00011506,2]
[422374440,1778895041000,-1046.62,0.00011506,2]
[422374441,1778895041000,-500.0,0.00011506,2]
[422374444,1778895041000,-500.0,0.00011506,2]
[422374445,1778895041000,-1003.84,0.00011506,2]
[422374450,1778895041000,-1114.18,0.00011506,2]
[422374448,1778895041000,-3195.87,0.00011506,2]
[422374447,1778895041000,-744.48,0.00011506,2]
[422374442,1778895041000,-500.0,0.00011506,2]
[422374446,1778895041000,-500.0,0.00011506,2]
[422374452,1778895041000,-635.31,0.00011506,2]
[422374451,1778895041000,-500.0,0.00011506,2]
[422374449,1778895041000,-500.0,0.00011506,2]
[422374443,1778895041000,-500.0,0.00011506,2]
[422374453,1778895041000,-1216.26,0.00011506,2]
[422374466,1778895041000,-2756.49,0.00011506,2]
[422374458,1778895041000,-1469.88,0.00011506,2]
[422374467,1778895041000,-500.0,0.00011506,2]
[422374455,1778895041000,-3672.6,0.00011506,2]
[422374454,1778895041000,-1216.37,0.00011506,2]
[422374490,1778895041000,-3496.11,0.00011506,2]
[422374535,1778895041000,-500.0,0.0001178,2]
[422374504,1778895041000,-3000.0,0.0001159,30]
[422374522,1778895041000,-500.0,0.0001178,2]
[422374530,1778895041000,-500.0,0.0001178,2]
[422374532,1778895041000,-500.0,0.0001178,2]
[422374540,1778895041000,-642.68,0.0001178,2]
[422374537,1778895041000,-500.0,0.0001178,2]
[422374539,1778895041000,-633.73,0.0001178,2]
[422374541,1778895041000,-1142.54,0.0001178,2]
[422374533,1778895041000,-582.96,0.0001178,2]
[422374556,1778895041000,-500.0,0.0001178,2]
[422374531,1778895041000,-500.0,0.0001178,2]
[422374536,1778895041000,-1088.92,0.0001178,2]
[422374534,1778895041000,-500.0,0.0001178,2]
[422374538,1778895041000,-678.64,0.0001178,2]
[422374524,1778895041000,-500.0,0.0001178,2]
[422374543,1778895041000,-500.0,0.0001178,2]
[422374544,1778895041000,-500.0,0.0001178,2]
[422374542,1778895041000,-500.0,0.0001178,2]
[422374553,1778895041000,-1358.26,0.0001178,2]
[422374547,1778895041000,-616.42,0.0001178,2]
[422374546,1778895041000,-500.0,0.0001178,2]
[422374550,1778895041000,-500.0,0.0001178,2]
[422374548,1778895041000,-500.0,0.0001178,2]
[422374549,1778895041000,-999.97,0.0001178,2]
[422374552,1778895041000,-500.0,0.0001178,2]
[422374551,1778895041000,-699.49,0.0001178,2]
[422374555,1778895041000,-1046.62,0.0001178,2]
[422374554,1778895041000,-682.63,0.0001178,2]
[422374492,1778895041000,-2103.37,0.00011506,2]
[422374545,1778895041000,-500.0,0.0001178,2]
[422374523,1778895041000,-500.0,0.0001178,2]
[422374529,1778895041000,-500.0,0.0001178,2]
[422374526,1778895041000,-594.2,0.0001178,2]
[422374494,1778895041000,-1583.05,0.00011506,2]
[422374527,1778895041000,-500.0,0.0001178,2]
[422374493,1778895041000,-500.0,0.00011506,2]
[422374496,1778895041000,-3000.0,0.0001151,30]
[422374495,1778895041000,-300.0,0.00011507,3]
[422374498,1778895041000,-3000.0,0.0001153,30]
[422374500,1778895041000,-3000.0,0.0001155,30]
[422374497,1778895041000,-3000.0,0.0001152,30]
[422374499,1778895041000,-3000.0,0.0001154,30]
[422374503,1778895041000,-3000.0,0.0001158,30]
[422374501,1778895041000,-3000.0,0.0001156,30]
[422374502,1778895041000,-3000.0,0.0001157,30]
[422374506,1778895041000,-3000.0,0.0001161,30]
[422374508,1778895041000,-5164.342331,0.0001163,30]
[422374510,1778895041000,-600.0,0.00011735,2]
[422374505,1778895041000,-3000.0,0.000116,30]
[422374511,1778895041000,-2768.49974458,0.0001176,2]
[422374509,1778895041000,-164.5735,0.00011643,2]
[422374525,1778895041000,-500.0,0.0001178,2]
[422374521,1778895041000,-531.42,0.0001178,2]
[422374519,1778895041000,-536.66,0.0001178,2]
[422374517,1778895041000,-500.0,0.0001178,2]
[422374518,1778895041000,-591.82,0.0001178,2]
[422374528,1778895041000,-1008.25,0.0001178,2]
[422374515,1778895041000,-595.41447685,0.0001178,2]
[422374507,1778895041000,-3000.0,0.0001162,30]
[422374514,1778895041000,-500.0,0.0001178,2]
[422374513,1778895041000,-666.6281,0.0001178,2]
[422374516,1778895041000,-500.0,0.0001178,2]
[422374512,1778895041000,-980.3574,0.0001178,2]
[422374572,1778895042000,-3009.81,0.0001178,2]
[422374578,1778895042000,-3168.01,0.0001178,2]
[422374568,1778895042000,-1216.26,0.0001178,2]
[422374584,1778895042000,-1264.33,0.0001178,2]
[422374575,1778895042000,-500.0,0.0001178,2]
[422374577,1778895042000,-500.0,0.0001178,2]
[422374573,1778895042000,-1469.88,0.0001178,2]
[422374574,1778895042000,-1006.43,0.0001178,2]
[422374585,1778895042000,-1367.1,0.0001178,2]
[422374587,1778895042000,-500.0,0.0001178,2]
[422374579,1778895042000,-500.0,0.0001178,2]
[422374576,1778895042000,-1028.23,0.0001178,2]
[422374580,1778895042000,-500.0,0.0001178,2]
[422374562,1778895042000,-744.48,0.0001178,2]
[422374569,1778895042000,-1216.37,0.0001178,2]
[422374571,1778895042000,-946.63,0.0001178,2]
[422374567,1778895042000,-635.31,0.0001178,2]
[422374563,1778895042000,-500.0,0.0001178,2]
[422374565,1778895042000,-1114.18,0.0001178,2]
[422374566,1778895042000,-500.0,0.0001178,2]
[422374559,1778895042000,-500.0,0.0001178,2]
[422374561,1778895042000,-500.0,0.0001178,2]
[422374557,1778895042000,-500.0,0.0001178,2]
[422374560,1778895042000,-1003.84,0.0001178,2]
[422374558,1778895042000,-500.0,0.0001178,2]
[422374564,1778895042000,-3195.87,0.0001178,2]
[422374589,1778895042000,-1199.35,0.0001178,2]
[422374570,1778895042000,-3672.6,0.0001178,2]
[422374582,1778895042000,-500.0,0.0001178,2]
[422374591,1778895042000,-1035.55,0.0001178,2]
[422374593,1778895042000,-616.66,0.0001178,2]
[422374581,1778895042000,-2756.49,0.0001178,2]
[422374616,1778895042000,-794.10945638,0.00012,2]
[422374613,1778895042000,-5338.75110138,0.000119,2]
[422374610,1778895042000,-151.0,0.00011882,2]
[422374608,1778895042000,-270.24521074,0.0001178,2]
[422374611,1778895042000,-1062.2,0.000119,5]
[422374612,1778895042000,-2459.5,0.000119,2]
[422374615,1778895042000,-134503.97163753,0.00012,2]
[422374609,1778895042000,-1583.05,0.0001178,2]
[422374606,1778895042000,-1650.72,0.0001178,2]
[422374607,1778895042000,-2103.37,0.0001178,2]
[422374602,1778895042000,-692.08,0.0001178,2]
[422374600,1778895042000,-1951.34,0.0001178,2]
[422374603,1778895042000,-1549.76,0.0001178,2]
[422374614,1778895042000,-222.0,0.0001193,2]
[422374604,1778895042000,-3097.95,0.0001178,2]
[422374605,1778895042000,-3496.11,0.0001178,2]
[422374598,1778895042000,-1271.89,0.0001178,2]
[422374601,1778895042000,-500.0,0.0001178,2]
[422374597,1778895042000,-1365.03,0.0001178,2]
[422374594,1778895042000,-4774.45,0.0001178,2]
[422374596,1778895042000,-524.38,0.0001178,2]
[422374586,1778895042000,-1988.35,0.0001178,2]
[422374595,1778895042000,-1458.09,0.0001178,2]
[422374588,1778895042000,-657.82,0.0001178,2]
[422374583,1778895042000,-1081.83,0.0001178,2]
[422374592,1778895042000,-2063.71,0.0001178,2]
[422374590,1778895042000,-24590.66,0.0001178,2]
[422374599,1778895042000,-500.0,0.0001178,2]
[422374630,1778895044000,-500.0,0.00010957,2]
[422374629,1778895044000,-500.0,0.00010957,2]
[422374632,1778895044000,-73.32856484,0.00010957,2]
[422374631,1778895044000,-250.0,0.00010957,2]
[422374670,1778895046000,-500.0,0.00010957,2]
[422374668,1778895046000,-500.0,0.00010957,2]
[422374677,1778895046000,-500.0,0.00011232,2]
[422374667,1778895046000,-500.0,0.00010957,2]
[422374676,1778895046000,-500.0,0.00010958,2]
[422374664,1778895046000,-426.67143516,0.00010957,2]
[422374674,1778895046000,-500.0,0.00010958,2]
[422374672,1778895046000,-500.0,0.00010957,2]
[422374678,1778895047000,-500.0,0.00011232,2]
[422374684,1778895047000,-5028.16250492,0.00012,2]
[422374679,1778895047000,-500.0,0.00011506,2]
[422374680,1778895047000,-500.0,0.00011506,2]
[422374683,1778895047000,-7855.94956824,0.00012,2]
[422374688,1778895047000,-409304.83921509,0.00012,2]
[422374681,1778895047000,-1847.5789966,0.0001176,2]
[422374682,1778895047000,-500.0,0.0001178,2]
[422374687,1778895047000,-500.0,0.0001178,2]
[422374686,1778895047000,-583.18,0.00010958,2]
[422374689,1778895047000,-1405.14528569,0.00012,2]
[422374685,1778895047000,-657.48855298,0.00012,2]
[422374696,1778895349000,678.77,0.0001849,120]
[422374699,1778896026000,1000.0,0.00018493,120]
[422374700,1778896042000,546.0,0.00018493,120]
[422374727,1778896232000,-808.52906721,9.421e-05,2]
[422374933,1778896242000,-239.45860785,9.957e-05,2]
[422374932,1778896242000,-247.76063568,9.957e-05,2]
[422374935,1778896242000,-223.04447076,9.957e-05,2]
[422374944,1778896242000,-297.49303302,9.957e-05,2]
[422374928,1778896242000,-1538.47693291,9.933e-05,2]
[422374930,1778896242000,-232.13865836,9.957e-05,2]
[422374924,1778896242000,-1593.50242013,9.421e-05,2]
[422374922,1778896242000,-2597.96851266,9.421e-05,2]
[422374938,1778896242000,-276.95552924,9.957e-05,2]
[422374926,1778896242000,-316.40544223,9.685e-05,2]
[422374941,1778896242000,-202.50696698,9.957e-05,2]
[422374946,1778896242000,-427.37167717,9.957e-05,2]
[422374955,1778896242000,-500.0,9.957e-05,2]
[422374950,1778896242000,-500.0,9.957e-05,2]
[422374951,1778896242000,-500.0,9.957e-05,2]
[422374953,1778896242000,-500.0,9.957e-05,2]
[422374970,1778896242000,-1538.47693294,9.958e-05,2]
[422374968,1778896242000,-550.0,9.957e-05,2]
[422374960,1778896242000,-500.0,9.957e-05,2]
[422374959,1778896242000,-500.0,9.957e-05,2]
[422374962,1778896242000,-500.0,9.957e-05,2]
[422374957,1778896242000,-500.0,9.957e-05,2]
[422374972,1778896242000,-268502.15489448,9.958e-05,2]
[422374966,1778896242000,-500.0,9.957e-05,2]
[422374964,1778896242000,-500.0,9.957e-05,2]
[422374948,1778896242000,-500.0,9.957e-05,2]
[422375135,1778896244000,-78900.88015877,9.958e-05,2]
[422375136,1778896244000,-283.87210497,9.958e-05,2]
[422375134,1778896244000,-431.83675393,9.958e-05,2]
[422375133,1778896244000,-3770.77574739,9.958e-05,2]
[422375140,1778896246000,-2818.80666025,9.958e-05,2]
[422375142,1778896247000,-302.55707734,9.958e-05,2]
[422375141,1778896247000,-108028.92359698,9.958e-05,2]
[422375173,1778897431000,-561.85557731,9.372e-05,2]
[422375175,1778897431000,-310.07733338,9.515e-05,2]
[422375176,1778897431000,-326.504,9.563e-05,2]
[422375174,1778897431000,-4438.14442269,9.372e-05,2]
[422375177,1778897431000,-500.0,9.757e-05,2]
[422375185,1778897431000,-500.0,9.757e-05,2]
[422375183,1778897431000,-500.0,9.757e-05,2]
[422375184,1778897431000,-500.0,9.757e-05,2]
[422375181,1778897431000,-500.0,9.757e-05,2]
[422375182,1778897431000,-184.16017402,9.757e-05,2]
[422375179,1778897431000,-173.43244498,9.757e-05,2]
[422375180,1778897431000,-500.0,9.757e-05,2]
[422375187,1778897431000,-500.0,9.757e-05,2]
[422375188,1778897431000,-923.08615977,9.758e-05,2]
[422375186,1778897431000,-500.0,9.757e-05,2]
[422375189,1778897431000,-9190.52204845,9.758e-05,2]
[422375178,1778897431000,-500.0,9.757e-05,2]
[422375406,1778897441000,-545.14902536,9.661e-05,2]
[422375410,1778897445000,-1072.34012177,9.661e-05,2]
[422375411,1778897445000,-3180.78057125,9.758e-05,2]
[422375413,1778897445000,-20099.63232854,9.758e-05,2]
[422375426,1778897446000,-1143.39730097,9.758e-05,2]
[422375425,1778897446000,-63816.13918163,9.758e-05,2]
[422375424,1778897446000,-1025.76618042,9.758e-05,2]
[422375423,1778897446000,-20165.67121127,9.758e-05,2]
[422375422,1778897446000,-5463.26729104,9.758e-05,2]
[422375431,1778897780000,1717.264,0.00018493,120]
[422375453,1778898211000,217.46531214,0.0001795,120]
[422375456,1778898485000,470.0,0.00018493,120]
[422375465,1778898631000,-3678.2493692,7.822e-05,2]
[422375466,1778898631000,-1321.7506308,7.822e-05,2]
[422375467,1778898631000,-351.84130115,7.901e-05,2]
[422375483,1778898632000,-500.0,9.557e-05,2]
[422375468,1778898632000,-410.71337545,7.901e-05,2]
[422375469,1778898632000,-391.92824447,7.901e-05,2]
[422375471,1778898632000,-3575.98761198,7.901e-05,2]
[422375472,1778898632000,-339.28941114,7.981e-05,2]
[422375473,1778898632000,-3167.22142414,7.981e-05,2]
[422375470,1778898632000,-269.52946695,7.901e-05,2]
[422375474,1778898632000,-545.83712939,7.981e-05,2]
[422375480,1778898632000,-182.97863,9.557e-05,2]
[422375481,1778898632000,-317.02137,9.557e-05,2]
[422375482,1778898632000,-500.0,9.557e-05,2]
[422375476,1778898632000,-230.0,8.061e-05,2]
[422375475,1778898632000,-947.65203533,7.981e-05,2]
[422375489,1778898632000,-4039.14546813,9.558e-05,2]
[422375487,1778898632000,-278.91212182,9.557e-05,2]
[422375486,1778898632000,-500.0,9.557e-05,2]
[422375485,1778898632000,-500.0,9.557e-05,2]
[422375488,1778898632000,-281.4021887,9.557e-05,2]
[422375477,1778898632000,-300.0,8.061e-05,2]
[422375479,1778898632000,-299.0,8.867e-05,2]
[422375478,1778898632000,-311.24380251,8.103e-05,2]
[422375484,1778898632000,-500.0,9.557e-05,2]
[422375594,1778898638000,-500.0,0.00010958,2]
[422375592,1778898638000,-500.0,0.00010958,2]
[422375583,1778898638000,-738.4689278,0.00010858,2]
[422375578,1778898638000,-300.0,0.00010258,2]
[422375579,1778898638000,-600.0,0.00010258,2]
[422375591,1778898638000,-654.1063,0.00010958,2]
[422375581,1778898638000,-161.66594191,0.00010709,2]
[422375611,1778898638000,-500.0,0.00010958,2]
[422375585,1778898638000,-1337.05485191,0.0001091,21]
[422375599,1778898638000,-500.0,0.00010958,2]
[422375601,1778898638000,-500.0,0.00010958,2]
[422375588,1778898638000,-1131.0065,0.00010958,2]
[422375613,1778898638000,-500.0,0.00010958,2]
[422375616,1778898638000,-500.0,0.00010958,2]
[422375618,1778898638000,-500.0,0.00010958,2]
[422375603,1778898638000,-500.0,0.00010958,2]
[422375605,1778898638000,-500.0,0.00010958,2]
[422375597,1778898638000,-500.0,0.00010958,2]
[422375576,1778898638000,-300.0,0.00010258,2]
[422375558,1778898638000,-300.0,0.00010258,2]
[422375574,1778898638000,-300.0,0.00010258,2]
[422375609,1778898638000,-500.0,0.00010958,2]
[422375537,1778898638000,-1200.0,9.558e-05,2]
[422375543,1778898638000,-23180.83678724,0.0001,2]
[422375546,1778898638000,-367.26768696,0.00010103,2]
[422375550,1778898638000,-300.0,0.00010258,2]
[422375548,1778898638000,-470.17,0.000102,2]
[422375539,1778898638000,-256524.0156519,9.558e-05,2]
[422375541,1778898638000,-200.76990652,9.6e-05,2]
[422375587,1778898638000,-934.3113635,0.00010917,2]
[422375552,1778898638000,-300.0,0.00010258,2]
[422375564,1778898638000,-300.0,0.00010258,2]
[422375566,1778898638000,-300.0,0.00010258,2]
[422375568,1778898638000,-300.0,0.00010258,2]
[422375560,1778898638000,-300.0,0.00010258,2]
[422375556,1778898638000,-300.0,0.00010258,2]
[422375570,1778898638000,-300.0,0.00010258,2]
[422375572,1778898638000,-300.0,0.00010258,2]
[422375554,1778898638000,-300.0,0.00010258,2]
[422375562,1778898638000,-300.0,0.00010258,2]
[422375607,1778898638000,-510.70650858,0.00010958,2]
[422375649,1778898638000,-952.12,0.00010958,2]
[422375622,1778898638000,-840.2,0.00010958,2]
[422375665,1778898638000,-502.12926746,0.00010958,2]
[422375670,1778898638000,-502.44090139,0.00010958,2]
[422375663,1778898638000,-513.93,0.00010958,2]
[422375668,1778898638000,-501.42610294,0.00010958,2]
[422375684,1778898638000,-500.0,0.00010958,2]
[422375682,1778898638000,-833.68,0.00010958,2]
[422375680,1778898638000,-500.72777303,0.00010958,2]
[422375686,1778898638000,-502.00353537,0.00010958,2]
[422375678,1778898638000,-500.75260108,0.00010958,2]
[422375688,1778898638000,-500.62055202,0.00010958,2]
[422375694,1778898638000,-550.55,0.00010958,2]
[422375692,1778898638000,-500.0,0.00010958,2]
[422375700,1778898638000,-872.61,0.00010958,2]
[422375620,1778898638000,-500.0,0.00010958,2]
[422375696,1778898638000,-502.39891373,0.00010958,2]
[422375704,1778898638000,-502.40466891,0.00010958,2]
[422375706,1778898638000,-500.0,0.00010958,2]
[422375702,1778898638000,-501.63348815,0.00010958,2]
[422375690,1778898638000,-1133.14,0.00010958,2]
[422375676,1778898638000,-502.17126408,0.00010958,2]
[422375698,1778898638000,-501.28905967,0.00010958,2]
[422375659,1778898638000,-500.0,0.00010958,2]
[422375674,1778898638000,-501.50402344,0.00010958,2]
[422375636,1778898638000,-907.43,0.00010958,2]
[422375641,1778898638000,-535.82,0.00010958,2]
[422375626,1778898638000,-500.0,0.00010958,2]
[422375624,1778898638000,-500.0,0.00010958,2]
[422375643,1778898638000,-528.11,0.00010958,2]
[422375630,1778898638000,-500.0,0.00010958,2]
[422375634,1778898638000,-500.0,0.00010958,2]
[422375647,1778898638000,-500.0,0.00010958,2]
[422375639,1778898638000,-500.0,0.00010958,2]
[422375645,1778898638000,-565.87,0.00010958,2]
[422375632,1778898638000,-500.0,0.00010958,2]
[422375651,1778898638000,-500.0,0.00010958,2]
[422375653,1778898638000,-500.0,0.00010958,2]
[422375655,1778898638000,-500.0,0.00010958,2]
[422375657,1778898638000,-500.0,0.00010958,2]
[422375661,1778898638000,-434.29261429,0.00010958,2]
[422375628,1778898638000,-500.0,0.00010958,2]
[422375672,1778898638000,-500.66190074,0.00010958,2]
[422375795,1778898639000,-1053.95,0.00010958,2]
[422375797,1778898639000,-1142.91,0.00010958,2]
[422375807,1778898639000,-20497.68,0.00010958,2]
[422375791,1778898639000,-2297.88,0.00010958,2]
[422375789,1778898639000,-500.0,0.00010958,2]
[422375788,1778898639000,-500.0,0.00010958,2]
[422375780,1778898639000,-2640.94,0.00010958,2]
[422375781,1778898639000,-1657.46,0.00010958,2]
[422375786,1778898639000,-501.16886398,0.00010958,2]
[422375773,1778898639000,-500.0,0.00010958,2]
[422375778,1778898639000,-490.73038568,0.00010958,2]
[422375812,1778898639000,-500.91429209,0.00010958,2]
[422375793,1778898639000,-901.93,0.00010958,2]
[422375809,1778898639000,-999.7,0.00010958,2]
[422375828,1778898639000,-1626.12,0.00010958,2]
[422375816,1778898639000,-500.0,0.00010958,2]
[422375817,1778898639000,-3979.75,0.00010958,2]
[422375799,1778898639000,-548.34,0.00010958,2]
[422375822,1778898639000,-1137.82,0.00010958,2]
[422375803,1778898639000,-863.21,0.00010958,2]
[422375805,1778898639000,-1215.38,0.00010958,2]
[422375819,1778898639000,-500.86548484,0.00010958,2]
[422375801,1778898639000,-514.01,0.00010958,2]
[422375830,1778898639000,-500.0,0.00010958,2]
[422375832,1778898639000,-1147.48,0.00010958,2]
[422375843,1778898639000,-582.53453991,0.00010958,2]
[422375834,1778898639000,-501.58016993,0.00010958,2]
[422375836,1778898639000,-2705.38,0.00010958,2]
[422375783,1778898639000,-500.0,0.00010958,2]
[422375814,1778898639000,-1720.23,0.00010958,2]
[422375772,1778898639000,-500.61268725,0.00010958,2]
[422375841,1778898639000,-500.0,0.00010958,2]
[422375768,1778898639000,-839.1,0.00010958,2]
[422375722,1778898639000,-491.05024239,0.00010958,2]
[422375720,1778898639000,-566.65,0.00010958,2]
[422375712,1778898639000,-500.0,0.00010958,2]
[422375718,1778898639000,-1014.0,0.00010958,2]
[422375714,1778898639000,-500.72225236,0.00010958,2]
[422375710,1778898639000,-502.08928335,0.00010958,2]
[422375724,1778898639000,-500.0,0.00010958,2]
[422375708,1778898639000,-500.0,0.00010958,2]
[422375716,1778898639000,-501.07132884,0.00010958,2]
[422375728,1778898639000,-501.22191355,0.00010958,2]
[422375726,1778898639000,-500.94359605,0.00010958,2]
[422375732,1778898639000,-928.88,0.00010958,2]
[422375730,1778898639000,-838.46,0.00010958,2]
[422375734,1778898639000,-502.4220117,0.00010958,2]
[422375770,1778898639000,-1225.37,0.00010958,2]
[422375736,1778898639000,-620.63,0.00010958,2]
[422375738,1778898639000,-2664.32,0.00010958,2]
[422375754,1778898639000,-501.6815102,0.00010958,2]
[422375752,1778898639000,-3061.68,0.00010958,2]
[422375750,1778898639000,-529.68,0.00010958,2]
[422375740,1778898639000,-500.57506189,0.00010958,2]
[422375742,1778898639000,-500.91626044,0.00010958,2]
[422375746,1778898639000,-500.0,0.00010958,2]
[422375744,1778898639000,-789.17,0.00010958,2]
[422375756,1778898639000,-501.47691075,0.00010958,2]
[422375758,1778898639000,-501.04553821,0.00010958,2]
[422375760,1778898639000,-2509.02,0.00010958,2]
[422375764,1778898639000,-500.0,0.00010958,2]
[422375762,1778898639000,-500.0,0.00010958,2]
[422375766,1778898639000,-500.57961232,0.00010958,2]
[422375748,1778898639000,-1014.04,0.00010958,2]
[422375838,1778898639000,-1340.17,0.00010958,2]
[422375776,1778898639000,-571.44,0.00010958,2]
[422375845,1778898639000,-501.2877249,0.00010958,2]
[422375908,1778898639000,-151.0,0.00010959,2]
[422375914,1778898639000,-205.62634,0.00010959,2]
[422375918,1778898639000,-187.008,0.00011103,2]
[422375920,1778898639000,-303.71010122,0.00011201,21]
[422375924,1778898639000,-654.1063,0.00011232,2]
[422375922,1778898639000,-1131.0065,0.00011232,2]
[422375925,1778898639000,-500.0,0.00011232,2]
[422375928,1778898639000,-500.0,0.00011232,2]
[422375929,1778898639000,-500.0,0.00011232,2]
[422375941,1778898639000,-151.0,0.00011232,2]
[422375943,1778898639000,-151.0,0.00011232,2]
[422375937,1778898639000,-151.0,0.00011232,2]
[422375931,1778898639000,-500.0,0.00011232,2]
[422375935,1778898639000,-500.0,0.00011232,2]
[422375905,1778898639000,-151.0,0.00010959,2]
[422375933,1778898639000,-500.0,0.00011232,2]
[422375945,1778898639000,-151.0,0.00011232,2]
[422375947,1778898639000,-500.0,0.00011232,2]
[422375949,1778898639000,-500.0,0.00011232,2]
[422375951,1778898639000,-500.0,0.00011232,2]
[422375973,1778898639000,-151.0,0.00011232,2]
[422375959,1778898639000,-500.0,0.00011232,2]
[422375967,1778898639000,-151.0,0.00011232,2]
[422375955,1778898639000,-151.0,0.00011232,2]
[422375965,1778898639000,-840.2,0.00011232,2]
[422375963,1778898639000,-500.0,0.00011232,2]
[422375953,1778898639000,-151.0,0.00011232,2]
[422375971,1778898639000,-151.0,0.00011232,2]
[422375961,1778898639000,-500.0,0.00011232,2]
[422375839,1778898639000,-501.01315021,0.00010958,2]
[422375939,1778898639000,-151.0,0.00011232,2]
[422375969,1778898639000,-151.0,0.00011232,2]
[422375957,1778898639000,-500.0,0.00011232,2]
[422375902,1778898639000,-151.0,0.00010959,2]
[422375847,1778898639000,-396.41135646,0.00010958,2]
[422375859,1778898639000,-500.0,0.00010958,2]
[422375857,1778898639000,-501.43561406,0.00010958,2]
[422375855,1778898639000,-500.9165544,0.00010958,2]
[422375861,1778898639000,-500.77458078,0.00010958,2]
[422375863,1778898639000,-500.37691533,0.00010958,2]
[422375849,1778898639000,-1419.5,0.00010958,2]
[422375851,1778898639000,-500.75977188,0.00010958,2]
[422375916,1778898639000,-738.46892779,0.00011064,2]
[422375853,1778898639000,-612.63,0.00010958,2]
[422375867,1778898639000,-502.4133491,0.00010958,2]
[422375868,1778898639000,-1823.09,0.00010958,2]
[422375870,1778898639000,-500.0,0.00010958,2]
[422375872,1778898639000,-501.22237726,0.00010958,2]
[422375874,1778898639000,-3028.37,0.00010958,2]
[422375865,1778898639000,-501.26655832,0.00010958,2]
[422375878,1778898639000,-500.9494574,0.00010958,2]
[422375904,1778898639000,-151.0,0.00010959,2]
[422375876,1778898639000,-500.51139914,0.00010958,2]
[422375912,1778898639000,-151.0,0.00010959,2]
[422375910,1778898639000,-151.0,0.00010959,2]
[422375900,1778898639000,-151.0,0.00010959,2]
[422375896,1778898639000,-175.87,0.00010959,2]
[422375893,1778898639000,-175.87,0.00010959,2]
[422375897,1778898639000,-175.89,0.00010959,2]
[422375883,1778898639000,-501.64428083,0.00010958,2]
[422375889,1778898639000,-501.77069783,0.00010958,2]
[422375885,1778898639000,-2389.13,0.00010958,2]
[422375882,1778898639000,-412.77602722,0.00010958,2]
[422375887,1778898639000,-500.65315136,0.00010958,2]
[422375880,1778898639000,-501.2467103,0.00010958,2]
[422375891,1778898639000,-175.87,0.00010959,2]
[422376065,1778898640000,-1133.14,0.00011232,2]
[422376061,1778898640000,-500.0,0.00011232,2]